{"text_format":"2","workbook":"xlsx","n_sheets":14,"sheets":["Ergebnisse","Grunddaten","Liste Landwirte","Personalliste","Anlieferung zur Entwässerung","Anlagevermögen","Personalkosten","Kosten Entwässerung","Kosten Nassschlamm","Verteilung Entwässerung","Kostenarten Entwässerung","Listen","Kostenarten Nassschlamm","Verteilung Nassschlamm"],"not_rendered":{"charts":0,"images":43,"macros":1,"external_links":0,"defined_names":44,"comments":3,"pivot_tables":0},"unopened":[],"bounds":{"document_bytes":16777216,"sheet_cells":100000,"run_cost":"one","rows_first":2000,"rows_last":500,"rows_between":2000,"halvings":0,"cell_chars":16384,"cell_head_chars":4096},"cells_cut":0,"cells_raw":0,"read":"whole","date_system":"1900"}

{"sheet":"Ergebnisse","index":0,"n_rows":21,"n_cols":18,"rows_kept":21,"cut":false,"hidden":false,"merged":[[6,0,8,0],[12,0,20,0],[3,6,3,13],[3,14,3,17],[9,6,9,13],[3,3,3,5],[9,3,9,5],[9,14,9,17]]}
["Name der Verbandsgemeinde",{"$f":"NAME_VG","v":"Abwasserbeseitigung XYZ"}]
["Daten des Wirtschaftjahres",{"$f":"JAHR","v":2015}]
["Zinssatz für Verzinsung des eingesetzten Kapitals",{"$f":"ZINSSATZ","v":0.02}]
["Kläranlagen",null,"Menge","Menge * TS in %",null,null,"Kosten der Klärschlammentwässerung",{"$nulls":7},"Kosten der Aufbringung inkl. Schlammproben"]
[null,null,"Ausbringung","Ausbringung",null,null,"AfA","Verzinsung des \nKapitals","Personalkosten",null,null,"übrige","Gesamt","je Menge * TS in %","Aufbringung","Schlammproben","Gesamt","je Menge * TS in %"]
[null,"Summe",{"$f":"SUM(C7:C9)","v":0},{"$f":"SUM(D7:D9)","v":0},{"$f":"SUM(E7:E9)","v":0},{"$f":"SUM(F7:F9)","v":0},{"$f":"SUM(G7:G9)","v":0},{"$f":"SUM(H7:H9)","v":0},0,null,null,0,0,{"$f":"IFERROR(M6/D6,\"n.n.\")","v":"n.n."},0,0,0,{"$f":"IFERROR(Q6/D6,\"n.n.\")","v":"n.n."}]
["für Einsatz mit Klärschlammentwässerung",{"$f":"KA_NR1","v":"KA 1 mit Entwässerung"},{"$f":"SUMIFS('Kosten Entwässerung'!$H$10:$H$16,'Kosten Entwässerung'!$B$10:$B$16,JAHR,'Kosten Entwässerung'!$D$10:$D$16,KA_NR1,'Kosten Entwässerung'!$E$10:$E$16,\"Entsorgung/Aufbringung auf Fläche\")","v":0},{"$f":"SUMIFS('Kosten Entwässerung'!$L$10:$L$16,'Kosten Entwässerung'!$B$10:$B$16,JAHR,'Kosten Entwässerung'!$D$10:$D$16,KA_NR1,'Kosten Entwässerung'!$E$10:$E$16,\"Entsorgung/Aufbringung auf Fläche\")","v":0},null,null,{"$f":"Anlagevermögen!G3","v":0},{"$f":"Anlagevermögen!J3","v":0},{"$f":"Personalkosten!G3","v":0},null,null,{"$f":"SUMIFS('Kosten Entwässerung'!$K$10:$K$16,'Kosten Entwässerung'!$B$10:$B$16,JAHR,'Kosten Entwässerung'!$D$10:$D$16,KA_NR1)-SUM(O7:P7)","v":0},{"$f":"SUM(G7:L7)","v":0},{"$f":"IFERROR(M7/D7,\"n.n.\")","v":"n.n."},{"$f":"SUMIFS('Kosten Entwässerung'!$K$10:$K$16,'Kosten Entwässerung'!$B$10:$B$16,JAHR,'Kosten Entwässerung'!$D$10:$D$16,KA_NR1,'Kosten Entwässerung'!$E$10:$E$16,\"Entsorgung/Aufbringung auf Fläche\")","v":0},{"$f":"SUMIFS('Kosten Entwässerung'!$K$10:$K$16,'Kosten Entwässerung'!$B$10:$B$16,JAHR,'Kosten Entwässerung'!$D$10:$D$16,KA_NR1,'Kosten Entwässerung'!$E$10:$E$16,\"Untersuchung entwässerte Proben\")","v":0},{"$f":"SUM(O7:P7)","v":0},{"$f":"IFERROR(Q7/D7,\"n.n.\")","v":"n.n."}]
[null,{"$f":"KA_NR2","v":"KA 2"},{"$f":"SUMIFS('Kosten Entwässerung'!$H$10:$H$16,'Kosten Entwässerung'!$B$10:$B$16,JAHR,'Kosten Entwässerung'!$D$10:$D$16,KA_NR2,'Kosten Entwässerung'!$E$10:$E$16,\"Entsorgung/Aufbringung auf Fläche\")","v":0},{"$f":"SUMIFS('Kosten Entwässerung'!$L$10:$L$16,'Kosten Entwässerung'!$B$10:$B$16,JAHR,'Kosten Entwässerung'!$D$10:$D$16,KA_NR2,'Kosten Entwässerung'!$E$10:$E$16,\"Entsorgung/Aufbringung auf Fläche\")","v":0},null,null,{"$f":"Anlagevermögen!G4","v":0},{"$f":"Anlagevermögen!J4","v":0},{"$f":"Personalkosten!G4","v":0},null,null,{"$f":"SUMIFS('Kosten Entwässerung'!$K$10:$K$16,'Kosten Entwässerung'!$B$10:$B$16,JAHR,'Kosten Entwässerung'!$D$10:$D$16,KA_NR2)-P8","v":0},{"$f":"SUM(G8:L8)","v":0},{"$f":"IFERROR(M8/C8,\"n.n.\")","v":"n.n."},{"$f":"SUMIFS('Kosten Entwässerung'!$K$10:$K$16,'Kosten Entwässerung'!$B$10:$B$16,JAHR,'Kosten Entwässerung'!$D$10:$D$16,KA_NR2,'Kosten Entwässerung'!$E$10:$E$16,\"Entsorgung/Aufbringung auf Fläche\")","v":0},{"$f":"SUMIFS('Kosten Entwässerung'!$K$10:$K$16,'Kosten Entwässerung'!$B$10:$B$16,JAHR,'Kosten Entwässerung'!$D$10:$D$16,KA_NR2,'Kosten Entwässerung'!$E$10:$E$16,\"Untersuchung entwässerte Proben\")","v":0},{"$f":"SUM(O8:P8)","v":0},{"$f":"IFERROR(Q8/C8,\"n.n.\")","v":"n.n."}]
[null,{"$f":"KA_NR3","v":"KA 3"},{"$f":"SUMIFS('Kosten Entwässerung'!$H$10:$H$16,'Kosten Entwässerung'!$B$10:$B$16,JAHR,'Kosten Entwässerung'!$D$10:$D$16,KA_NR2,'Kosten Entwässerung'!$E$10:$E$16,\"Entsorgung/Aufbringung auf Fläche\")","v":0},{"$f":"SUMIFS('Kosten Entwässerung'!$L$10:$L$16,'Kosten Entwässerung'!$B$10:$B$16,JAHR,'Kosten Entwässerung'!$D$10:$D$16,KA_NR2,'Kosten Entwässerung'!$E$10:$E$16,\"Entsorgung/Aufbringung auf Fläche\")","v":0},null,null,{"$f":"Anlagevermögen!G5","v":0},{"$f":"Anlagevermögen!J5","v":0},{"$f":"Personalkosten!G5","v":0},null,null,{"$f":"SUMIFS('Kosten Entwässerung'!$K$10:$K$16,'Kosten Entwässerung'!$B$10:$B$16,JAHR,'Kosten Entwässerung'!$D$10:$D$16,KA_NR3)-P9","v":0},{"$f":"SUM(G9:L9)","v":0},{"$f":"IFERROR(M9/C9,\"n.n.\")","v":"n.n."},{"$f":"SUMIFS('Kosten Entwässerung'!$K$10:$K$16,'Kosten Entwässerung'!$B$10:$B$16,JAHR,'Kosten Entwässerung'!$D$10:$D$16,KA_NR3,'Kosten Entwässerung'!$E$10:$E$16,\"Entsorgung/Aufbringung auf Fläche\")","v":0},{"$f":"SUMIFS('Kosten Entwässerung'!$K$10:$K$16,'Kosten Entwässerung'!$B$10:$B$16,JAHR,'Kosten Entwässerung'!$D$10:$D$16,KA_NR3,'Kosten Entwässerung'!$E$10:$E$16,\"Untersuchung entwässerte Proben\")","v":0},{"$f":"SUM(O9:P9)","v":0},{"$f":"IFERROR(Q9/C9,\"n.n.\")","v":"n.n."}]
[null,null,"Menge","Menge * TS in %",null,null,"Erfasste Kosten Nassschlamm",{"$nulls":7},"Ermittlung der Kosten für Transport zur KA zur Entwässerung"]
[null,null,"Ausbringung","Ausbringung","Transport zur KA","Transport in das \nGüllelager","Ausbringung","Transport zur KA","Transport in das \nGüllelager","Miete Güllebehälter","Untersuchung Proben","übrige","Gesamt","je Menge * TS in %","Transport zur KA","Transport in das \nGüllelager","Gesamt","je Menge"]
[null,"Summe",{"$f":"SUM(C13:C21)","v":0},0,0,0,0,0,0,0,0,0,0,{"$f":"IFERROR(M12/D12,\"n.n.\")","v":"n.n."},{"$f":"SUM(O13:O21)","v":0},{"$f":"SUM(P13:P21)","v":0},{"$f":"SUM(O12:P12)","v":0},{"$f":"IFERROR(Q12/'Kosten Nassschlamm'!C7,\"Nicht möglich wegen fehlender Angaben!\")","v":"Nicht möglich wegen fehlender Angaben!"}]
["für Einsatz ohne Klärschlammentwässerung",{"$f":"KA_NR4","v":"KA 1 ohne Entwässerung"},{"$f":"SUMIFS('Kosten Nassschlamm'!$H$14:$H$21,'Kosten Nassschlamm'!$B$14:$B$21,JAHR,'Kosten Nassschlamm'!$D$14:$D$21,KA_NR4,'Kosten Nassschlamm'!$E$14:$E$21,\"Aufbringung Nassschlamm aus KA\")+SUMIFS('Kosten Nassschlamm'!$H$14:$H$21,'Kosten Nassschlamm'!$B$14:$B$21,JAHR,'Kosten Nassschlamm'!$D$14:$D$21,KA_NR4,'Kosten Nassschlamm'!$E$14:$E$21,\"Aufbringung Nassschlamm aus Güllelager\")","v":0},{"$f":"SUMIFS('Kosten Nassschlamm'!$L$14:$L$21,'Kosten Nassschlamm'!$B$14:$B$21,JAHR,'Kosten Nassschlamm'!$D$14:$D$21,KA_NR4,'Kosten Nassschlamm'!$E$14:$E$21,\"Aufbringung Nassschlamm aus KA\")+SUMIFS('Kosten Nassschlamm'!$L$14:$L$21,'Kosten Nassschlamm'!$B$14:$B$21,JAHR,'Kosten Nassschlamm'!$D$14:$D$21,KA_NR4,'Kosten Nassschlamm'!$E$14:$E$21,\"Aufbringung Nassschlamm aus Güllelager\")","v":0},{"$f":"SUMIFS('Kosten Nassschlamm'!$L$14:$L$21,'Kosten Nassschlamm'!$B$14:$B$21,JAHR,'Kosten Nassschlamm'!$D$14:$D$21,KA_NR4,'Kosten Nassschlamm'!$E$14:$E$21,\"Transport zur KA für Entwässerung\")","v":0},{"$f":"SUMIFS('Kosten Nassschlamm'!$L$14:$L$21,'Kosten Nassschlamm'!$B$14:$B$21,JAHR,'Kosten Nassschlamm'!$D$14:$D$21,KA_NR4,'Kosten Nassschlamm'!$E$14:$E$21,\"Transport in das Güllelager\")","v":0},{"$f":"SUMIFS('Kosten Nassschlamm'!$K$14:$K$21,'Kosten Nassschlamm'!$B$14:$B$21,JAHR,'Kosten Nassschlamm'!$D$14:$D$21,KA_NR4,'Kosten Nassschlamm'!$E$14:$E$21,\"Aufbringung Nassschlamm aus KA\",'Kosten Nassschlamm'!$F$14:$F$21,\"direkt\")+SUMIFS('Kosten Nassschlamm'!$K$14:$K$21,'Kosten Nassschlamm'!$B$14:$B$21,JAHR,'Kosten Nassschlamm'!$D$14:$D$21,KA_NR4,'Kosten Nassschlamm'!$E$14:$E$21,\"Aufbringung Nassschlamm aus Güllelager\",'Kosten Nassschlamm'!$F$14:$F$21,\"direkt\")","v":0},{"$f":"SUMIFS('Kosten Nassschlamm'!$K$14:$K$21,'Kosten Nassschlamm'!$B$14:$B$21,JAHR,'Kosten Nassschlamm'!$D$14:$D$21,KA_NR4,'Kosten Nassschlamm'!$E$14:$E$21,\"Transport zur KA für Entwässerung\",'Kosten Nassschlamm'!$F$14:$F$21,\"direkt\")","v":0},{"$f":"SUMIFS('Kosten Nassschlamm'!$K$14:$K$21,'Kosten Nassschlamm'!$B$14:$B$21,JAHR,'Kosten Nassschlamm'!$D$14:$D$21,KA_NR4,'Kosten Nassschlamm'!$E$14:$E$21,\"Transport in das Güllelager\",'Kosten Nassschlamm'!$F$14:$F$21,\"direkt\")","v":0},{"$f":"IFERROR(-J$21*F13/SUM($F$13:$F$20),0)","v":0},{"$f":"IFERROR(-K$21*C13/SUM($C$13:$C$20),0)","v":0},{"$f":"M13-SUM(G13:K13)","v":0},{"$f":"SUMIFS('Kosten Nassschlamm'!$K$11:$K$52,'Kosten Nassschlamm'!$B$11:$B$52,JAHR,'Kosten Nassschlamm'!$D$11:$D$52,KA_NR4)+SUM(J13:K13)","v":0},{"$f":"IFERROR(M13/D13,\"n.n.\")","v":"n.n."},{"$f":"SUMIFS('Kosten Nassschlamm'!$K$14:$K$21,'Kosten Nassschlamm'!$B$14:$B$21,JAHR,'Kosten Nassschlamm'!$D$14:$D$21,KA_NR4,'Kosten Nassschlamm'!$E$14:$E$21,\"Transport zur KA für Entwässerung\",'Kosten Nassschlamm'!$F$14:$F$21,\"direkt\")","v":0},{"$f":"SUMIFS('Kosten Nassschlamm'!$K$14:$K$21,'Kosten Nassschlamm'!$B$14:$B$21,JAHR,'Kosten Nassschlamm'!$D$14:$D$21,KA_NR4,'Kosten Nassschlamm'!$E$14:$E$21,\"Transport in das Güllelager\",'Kosten Nassschlamm'!$F$14:$F$21,\"direkt\")","v":0},{"$f":"SUM(O13:P13)","v":0},{"$f":"IFERROR(Q13/'Kosten Nassschlamm'!D7,\"Nicht möglich wegen fehlender Angaben!\")","v":"Nicht möglich wegen fehlender Angaben!"}]
[null,{"$f":"KA_NR5","v":"KA 2 ohne Entwässerung"},{"$f":"SUMIFS('Kosten Nassschlamm'!$H$14:$H$21,'Kosten Nassschlamm'!$B$14:$B$21,JAHR,'Kosten Nassschlamm'!$D$14:$D$21,KA_NR5,'Kosten Nassschlamm'!$E$14:$E$21,\"Aufbringung Nassschlamm aus KA\")+SUMIFS('Kosten Nassschlamm'!$H$14:$H$21,'Kosten Nassschlamm'!$B$14:$B$21,JAHR,'Kosten Nassschlamm'!$D$14:$D$21,KA_NR5,'Kosten Nassschlamm'!$E$14:$E$21,\"Aufbringung Nassschlamm aus Güllelager\")","v":0},{"$f":"SUMIFS('Kosten Nassschlamm'!$L$14:$L$21,'Kosten Nassschlamm'!$B$14:$B$21,JAHR,'Kosten Nassschlamm'!$D$14:$D$21,KA_NR5,'Kosten Nassschlamm'!$E$14:$E$21,\"Aufbringung Nassschlamm aus KA\")+SUMIFS('Kosten Nassschlamm'!$L$14:$L$21,'Kosten Nassschlamm'!$B$14:$B$21,JAHR,'Kosten Nassschlamm'!$D$14:$D$21,KA_NR5,'Kosten Nassschlamm'!$E$14:$E$21,\"Aufbringung Nassschlamm aus Güllelager\")","v":0},{"$f":"SUMIFS('Kosten Nassschlamm'!$L$14:$L$21,'Kosten Nassschlamm'!$B$14:$B$21,JAHR,'Kosten Nassschlamm'!$D$14:$D$21,KA_NR5,'Kosten Nassschlamm'!$E$14:$E$21,\"Transport zur KA für Entwässerung\")","v":0},{"$f":"SUMIFS('Kosten Nassschlamm'!$L$14:$L$21,'Kosten Nassschlamm'!$B$14:$B$21,JAHR,'Kosten Nassschlamm'!$D$14:$D$21,KA_NR5,'Kosten Nassschlamm'!$E$14:$E$21,\"Transport in das Güllelager\")","v":0},{"$f":"SUMIFS('Kosten Nassschlamm'!$K$14:$K$21,'Kosten Nassschlamm'!$B$14:$B$21,JAHR,'Kosten Nassschlamm'!$D$14:$D$21,KA_NR5,'Kosten Nassschlamm'!$E$14:$E$21,\"Aufbringung Nassschlamm aus KA\",'Kosten Nassschlamm'!$F$14:$F$21,\"direkt\")+SUMIFS('Kosten Nassschlamm'!$K$14:$K$21,'Kosten Nassschlamm'!$B$14:$B$21,JAHR,'Kosten Nassschlamm'!$D$14:$D$21,KA_NR5,'Kosten Nassschlamm'!$E$14:$E$21,\"Aufbringung Nassschlamm aus Güllelager\",'Kosten Nassschlamm'!$F$14:$F$21,\"direkt\")","v":0},{"$f":"SUMIFS('Kosten Nassschlamm'!$K$14:$K$21,'Kosten Nassschlamm'!$B$14:$B$21,JAHR,'Kosten Nassschlamm'!$D$14:$D$21,KA_NR5,'Kosten Nassschlamm'!$E$14:$E$21,\"Transport zur KA für Entwässerung\",'Kosten Nassschlamm'!$F$14:$F$21,\"direkt\")","v":0},{"$f":"SUMIFS('Kosten Nassschlamm'!$K$14:$K$21,'Kosten Nassschlamm'!$B$14:$B$21,JAHR,'Kosten Nassschlamm'!$D$14:$D$21,KA_NR5,'Kosten Nassschlamm'!$E$14:$E$21,\"Transport in das Güllelager\",'Kosten Nassschlamm'!$F$14:$F$21,\"direkt\")","v":0},0,0,{"$f":"M14-SUM(G14:K14)","v":0},{"$f":"SUMIFS('Kosten Nassschlamm'!$K$11:$K$52,'Kosten Nassschlamm'!$B$11:$B$52,JAHR,'Kosten Nassschlamm'!$D$11:$D$52,KA_NR5)+SUM(J14:K14)","v":0},{"$f":"IFERROR(M14/D14,\"n.n.\")","v":"n.n."},{"$f":"SUMIFS('Kosten Nassschlamm'!$K$14:$K$21,'Kosten Nassschlamm'!$B$14:$B$21,JAHR,'Kosten Nassschlamm'!$D$14:$D$21,KA_NR5,'Kosten Nassschlamm'!$E$14:$E$21,\"Transport zur KA für Entwässerung\",'Kosten Nassschlamm'!$F$14:$F$21,\"direkt\")","v":0},{"$f":"SUMIFS('Kosten Nassschlamm'!$K$14:$K$21,'Kosten Nassschlamm'!$B$14:$B$21,JAHR,'Kosten Nassschlamm'!$D$14:$D$21,KA_NR5,'Kosten Nassschlamm'!$E$14:$E$21,\"Transport in das Güllelager\",'Kosten Nassschlamm'!$F$14:$F$21,\"direkt\")","v":0},{"$f":"SUM(O14:P14)","v":0},{"$f":"IFERROR(Q14/'Kosten Nassschlamm'!E7,\"Nicht möglich wegen fehlender Angaben!\")","v":"Nicht möglich wegen fehlender Angaben!"}]
[null,{"$f":"KA_NR6","v":"KA 3 ohne Entwässerung"},{"$f":"SUMIFS('Kosten Nassschlamm'!$H$14:$H$21,'Kosten Nassschlamm'!$B$14:$B$21,JAHR,'Kosten Nassschlamm'!$D$14:$D$21,KA_NR6,'Kosten Nassschlamm'!$E$14:$E$21,\"Aufbringung Nassschlamm aus KA\")+SUMIFS('Kosten Nassschlamm'!$H$14:$H$21,'Kosten Nassschlamm'!$B$14:$B$21,JAHR,'Kosten Nassschlamm'!$D$14:$D$21,KA_NR6,'Kosten Nassschlamm'!$E$14:$E$21,\"Aufbringung Nassschlamm aus Güllelager\")","v":0},{"$f":"SUMIFS('Kosten Nassschlamm'!$L$14:$L$21,'Kosten Nassschlamm'!$B$14:$B$21,JAHR,'Kosten Nassschlamm'!$D$14:$D$21,KA_NR6,'Kosten Nassschlamm'!$E$14:$E$21,\"Aufbringung Nassschlamm aus KA\")+SUMIFS('Kosten Nassschlamm'!$L$14:$L$21,'Kosten Nassschlamm'!$B$14:$B$21,JAHR,'Kosten Nassschlamm'!$D$14:$D$21,KA_NR6,'Kosten Nassschlamm'!$E$14:$E$21,\"Aufbringung Nassschlamm aus Güllelager\")","v":0},{"$f":"SUMIFS('Kosten Nassschlamm'!$L$14:$L$21,'Kosten Nassschlamm'!$B$14:$B$21,JAHR,'Kosten Nassschlamm'!$D$14:$D$21,KA_NR6,'Kosten Nassschlamm'!$E$14:$E$21,\"Transport zur KA für Entwässerung\")","v":0},{"$f":"SUMIFS('Kosten Nassschlamm'!$L$14:$L$21,'Kosten Nassschlamm'!$B$14:$B$21,JAHR,'Kosten Nassschlamm'!$D$14:$D$21,KA_NR6,'Kosten Nassschlamm'!$E$14:$E$21,\"Transport in das Güllelager\")","v":0},{"$f":"SUMIFS('Kosten Nassschlamm'!$K$14:$K$21,'Kosten Nassschlamm'!$B$14:$B$21,JAHR,'Kosten Nassschlamm'!$D$14:$D$21,KA_NR6,'Kosten Nassschlamm'!$E$14:$E$21,\"Aufbringung Nassschlamm aus KA\",'Kosten Nassschlamm'!$F$14:$F$21,\"direkt\")+SUMIFS('Kosten Nassschlamm'!$K$14:$K$21,'Kosten Nassschlamm'!$B$14:$B$21,JAHR,'Kosten Nassschlamm'!$D$14:$D$21,KA_NR6,'Kosten Nassschlamm'!$E$14:$E$21,\"Aufbringung Nassschlamm aus Güllelager\",'Kosten Nassschlamm'!$F$14:$F$21,\"direkt\")","v":0},{"$f":"SUMIFS('Kosten Nassschlamm'!$K$14:$K$21,'Kosten Nassschlamm'!$B$14:$B$21,JAHR,'Kosten Nassschlamm'!$D$14:$D$21,KA_NR6,'Kosten Nassschlamm'!$E$14:$E$21,\"Transport zur KA für Entwässerung\",'Kosten Nassschlamm'!$F$14:$F$21,\"direkt\")","v":0},{"$f":"SUMIFS('Kosten Nassschlamm'!$K$14:$K$21,'Kosten Nassschlamm'!$B$14:$B$21,JAHR,'Kosten Nassschlamm'!$D$14:$D$21,KA_NR6,'Kosten Nassschlamm'!$E$14:$E$21,\"Transport in das Güllelager\",'Kosten Nassschlamm'!$F$14:$F$21,\"direkt\")","v":0},0,0,0,{"$f":"SUMIFS('Kosten Nassschlamm'!$K$11:$K$52,'Kosten Nassschlamm'!$B$11:$B$52,JAHR,'Kosten Nassschlamm'!$D$11:$D$52,KA_NR6)+SUM(J15:K15)","v":0},{"$f":"IFERROR(M15/D15,\"n.n.\")","v":"n.n."},{"$f":"SUMIFS('Kosten Nassschlamm'!$K$14:$K$21,'Kosten Nassschlamm'!$B$14:$B$21,JAHR,'Kosten Nassschlamm'!$D$14:$D$21,KA_NR6,'Kosten Nassschlamm'!$E$14:$E$21,\"Transport zur KA für Entwässerung\",'Kosten Nassschlamm'!$F$14:$F$21,\"direkt\")","v":0},{"$f":"SUMIFS('Kosten Nassschlamm'!$K$14:$K$21,'Kosten Nassschlamm'!$B$14:$B$21,JAHR,'Kosten Nassschlamm'!$D$14:$D$21,KA_NR6,'Kosten Nassschlamm'!$E$14:$E$21,\"Transport in das Güllelager\",'Kosten Nassschlamm'!$F$14:$F$21,\"direkt\")","v":0},0,{"$f":"IFERROR(Q15/'Kosten Nassschlamm'!F7,\"Nicht möglich wegen fehlender Angaben!\")","v":"Nicht möglich wegen fehlender Angaben!"}]
[null,{"$f":"KA_NR7","v":"KA 4"},{"$f":"SUMIFS('Kosten Nassschlamm'!$H$14:$H$21,'Kosten Nassschlamm'!$B$14:$B$21,JAHR,'Kosten Nassschlamm'!$D$14:$D$21,KA_NR7,'Kosten Nassschlamm'!$E$14:$E$21,\"Aufbringung Nassschlamm aus KA\")+SUMIFS('Kosten Nassschlamm'!$H$14:$H$21,'Kosten Nassschlamm'!$B$14:$B$21,JAHR,'Kosten Nassschlamm'!$D$14:$D$21,KA_NR7,'Kosten Nassschlamm'!$E$14:$E$21,\"Aufbringung Nassschlamm aus Güllelager\")","v":0},{"$f":"SUMIFS('Kosten Nassschlamm'!$L$14:$L$21,'Kosten Nassschlamm'!$B$14:$B$21,JAHR,'Kosten Nassschlamm'!$D$14:$D$21,KA_NR7,'Kosten Nassschlamm'!$E$14:$E$21,\"Aufbringung Nassschlamm aus KA\")+SUMIFS('Kosten Nassschlamm'!$L$14:$L$21,'Kosten Nassschlamm'!$B$14:$B$21,JAHR,'Kosten Nassschlamm'!$D$14:$D$21,KA_NR7,'Kosten Nassschlamm'!$E$14:$E$21,\"Aufbringung Nassschlamm aus Güllelager\")","v":0},{"$f":"SUMIFS('Kosten Nassschlamm'!$L$14:$L$21,'Kosten Nassschlamm'!$B$14:$B$21,JAHR,'Kosten Nassschlamm'!$D$14:$D$21,KA_NR7,'Kosten Nassschlamm'!$E$14:$E$21,\"Transport zur KA für Entwässerung\")","v":0},{"$f":"SUMIFS('Kosten Nassschlamm'!$L$14:$L$21,'Kosten Nassschlamm'!$B$14:$B$21,JAHR,'Kosten Nassschlamm'!$D$14:$D$21,KA_NR7,'Kosten Nassschlamm'!$E$14:$E$21,\"Transport in das Güllelager\")","v":0},{"$f":"SUMIFS('Kosten Nassschlamm'!$K$14:$K$21,'Kosten Nassschlamm'!$B$14:$B$21,JAHR,'Kosten Nassschlamm'!$D$14:$D$21,KA_NR7,'Kosten Nassschlamm'!$E$14:$E$21,\"Aufbringung Nassschlamm aus KA\",'Kosten Nassschlamm'!$F$14:$F$21,\"direkt\")+SUMIFS('Kosten Nassschlamm'!$K$14:$K$21,'Kosten Nassschlamm'!$B$14:$B$21,JAHR,'Kosten Nassschlamm'!$D$14:$D$21,KA_NR7,'Kosten Nassschlamm'!$E$14:$E$21,\"Aufbringung Nassschlamm aus Güllelager\",'Kosten Nassschlamm'!$F$14:$F$21,\"direkt\")","v":0},{"$f":"SUMIFS('Kosten Nassschlamm'!$K$14:$K$21,'Kosten Nassschlamm'!$B$14:$B$21,JAHR,'Kosten Nassschlamm'!$D$14:$D$21,KA_NR7,'Kosten Nassschlamm'!$E$14:$E$21,\"Transport zur KA für Entwässerung\",'Kosten Nassschlamm'!$F$14:$F$21,\"direkt\")","v":0},{"$f":"SUMIFS('Kosten Nassschlamm'!$K$14:$K$21,'Kosten Nassschlamm'!$B$14:$B$21,JAHR,'Kosten Nassschlamm'!$D$14:$D$21,KA_NR7,'Kosten Nassschlamm'!$E$14:$E$21,\"Transport in das Güllelager\",'Kosten Nassschlamm'!$F$14:$F$21,\"direkt\")","v":0},0,0,0,{"$f":"SUMIFS('Kosten Nassschlamm'!$K$11:$K$52,'Kosten Nassschlamm'!$B$11:$B$52,JAHR,'Kosten Nassschlamm'!$D$11:$D$52,KA_NR7)+SUM(J16:K16)","v":0},{"$f":"IFERROR(M16/D16,\"n.n.\")","v":"n.n."},{"$f":"SUMIFS('Kosten Nassschlamm'!$K$14:$K$21,'Kosten Nassschlamm'!$B$14:$B$21,JAHR,'Kosten Nassschlamm'!$D$14:$D$21,KA_NR7,'Kosten Nassschlamm'!$E$14:$E$21,\"Transport zur KA für Entwässerung\",'Kosten Nassschlamm'!$F$14:$F$21,\"direkt\")","v":0},{"$f":"SUMIFS('Kosten Nassschlamm'!$K$14:$K$21,'Kosten Nassschlamm'!$B$14:$B$21,JAHR,'Kosten Nassschlamm'!$D$14:$D$21,KA_NR7,'Kosten Nassschlamm'!$E$14:$E$21,\"Transport in das Güllelager\",'Kosten Nassschlamm'!$F$14:$F$21,\"direkt\")","v":0},0,{"$f":"IFERROR(Q16/'Kosten Nassschlamm'!G7,\"Nicht möglich wegen fehlender Angaben!\")","v":"Nicht möglich wegen fehlender Angaben!"}]
[null,{"$f":"KA_NR8","v":"KA 5"},{"$f":"SUMIFS('Kosten Nassschlamm'!$H$14:$H$21,'Kosten Nassschlamm'!$B$14:$B$21,JAHR,'Kosten Nassschlamm'!$D$14:$D$21,KA_NR8,'Kosten Nassschlamm'!$E$14:$E$21,\"Aufbringung Nassschlamm aus KA\")+SUMIFS('Kosten Nassschlamm'!$H$14:$H$21,'Kosten Nassschlamm'!$B$14:$B$21,JAHR,'Kosten Nassschlamm'!$D$14:$D$21,KA_NR8,'Kosten Nassschlamm'!$E$14:$E$21,\"Aufbringung Nassschlamm aus Güllelager\")","v":0},{"$f":"SUMIFS('Kosten Nassschlamm'!$L$14:$L$21,'Kosten Nassschlamm'!$B$14:$B$21,JAHR,'Kosten Nassschlamm'!$D$14:$D$21,KA_NR8,'Kosten Nassschlamm'!$E$14:$E$21,\"Aufbringung Nassschlamm aus KA\")+SUMIFS('Kosten Nassschlamm'!$L$14:$L$21,'Kosten Nassschlamm'!$B$14:$B$21,JAHR,'Kosten Nassschlamm'!$D$14:$D$21,KA_NR8,'Kosten Nassschlamm'!$E$14:$E$21,\"Aufbringung Nassschlamm aus Güllelager\")","v":0},{"$f":"SUMIFS('Kosten Nassschlamm'!$L$14:$L$21,'Kosten Nassschlamm'!$B$14:$B$21,JAHR,'Kosten Nassschlamm'!$D$14:$D$21,KA_NR8,'Kosten Nassschlamm'!$E$14:$E$21,\"Transport zur KA für Entwässerung\")","v":0},{"$f":"SUMIFS('Kosten Nassschlamm'!$L$14:$L$21,'Kosten Nassschlamm'!$B$14:$B$21,JAHR,'Kosten Nassschlamm'!$D$14:$D$21,KA_NR8,'Kosten Nassschlamm'!$E$14:$E$21,\"Transport in das Güllelager\")","v":0},{"$f":"SUMIFS('Kosten Nassschlamm'!$K$14:$K$21,'Kosten Nassschlamm'!$B$14:$B$21,JAHR,'Kosten Nassschlamm'!$D$14:$D$21,KA_NR8,'Kosten Nassschlamm'!$E$14:$E$21,\"Aufbringung Nassschlamm aus KA\",'Kosten Nassschlamm'!$F$14:$F$21,\"direkt\")+SUMIFS('Kosten Nassschlamm'!$K$14:$K$21,'Kosten Nassschlamm'!$B$14:$B$21,JAHR,'Kosten Nassschlamm'!$D$14:$D$21,KA_NR8,'Kosten Nassschlamm'!$E$14:$E$21,\"Aufbringung Nassschlamm aus Güllelager\",'Kosten Nassschlamm'!$F$14:$F$21,\"direkt\")","v":0},{"$f":"SUMIFS('Kosten Nassschlamm'!$K$14:$K$21,'Kosten Nassschlamm'!$B$14:$B$21,JAHR,'Kosten Nassschlamm'!$D$14:$D$21,KA_NR8,'Kosten Nassschlamm'!$E$14:$E$21,\"Transport zur KA für Entwässerung\",'Kosten Nassschlamm'!$F$14:$F$21,\"direkt\")","v":0},{"$f":"SUMIFS('Kosten Nassschlamm'!$K$14:$K$21,'Kosten Nassschlamm'!$B$14:$B$21,JAHR,'Kosten Nassschlamm'!$D$14:$D$21,KA_NR8,'Kosten Nassschlamm'!$E$14:$E$21,\"Transport in das Güllelager\",'Kosten Nassschlamm'!$F$14:$F$21,\"direkt\")","v":0},0,0,0,{"$f":"SUMIFS('Kosten Nassschlamm'!$K$11:$K$52,'Kosten Nassschlamm'!$B$11:$B$52,JAHR,'Kosten Nassschlamm'!$D$11:$D$52,KA_NR8)+SUM(J17:K17)","v":0},"n.n.",{"$f":"SUMIFS('Kosten Nassschlamm'!$K$14:$K$21,'Kosten Nassschlamm'!$B$14:$B$21,JAHR,'Kosten Nassschlamm'!$D$14:$D$21,KA_NR8,'Kosten Nassschlamm'!$E$14:$E$21,\"Transport zur KA für Entwässerung\",'Kosten Nassschlamm'!$F$14:$F$21,\"direkt\")","v":0},{"$f":"SUMIFS('Kosten Nassschlamm'!$K$14:$K$21,'Kosten Nassschlamm'!$B$14:$B$21,JAHR,'Kosten Nassschlamm'!$D$14:$D$21,KA_NR8,'Kosten Nassschlamm'!$E$14:$E$21,\"Transport in das Güllelager\",'Kosten Nassschlamm'!$F$14:$F$21,\"direkt\")","v":0},0,{"$f":"IFERROR(Q17/'Kosten Nassschlamm'!H7,\"Nicht möglich wegen fehlender Angaben!\")","v":"Nicht möglich wegen fehlender Angaben!"}]
[null,{"$f":"KA_NR9","v":"KA 6"},{"$f":"SUMIFS('Kosten Nassschlamm'!$H$14:$H$21,'Kosten Nassschlamm'!$B$14:$B$21,JAHR,'Kosten Nassschlamm'!$D$14:$D$21,KA_NR9,'Kosten Nassschlamm'!$E$14:$E$21,\"Aufbringung Nassschlamm aus KA\")+SUMIFS('Kosten Nassschlamm'!$H$14:$H$21,'Kosten Nassschlamm'!$B$14:$B$21,JAHR,'Kosten Nassschlamm'!$D$14:$D$21,KA_NR9,'Kosten Nassschlamm'!$E$14:$E$21,\"Aufbringung Nassschlamm aus Güllelager\")","v":0},{"$f":"SUMIFS('Kosten Nassschlamm'!$L$14:$L$21,'Kosten Nassschlamm'!$B$14:$B$21,JAHR,'Kosten Nassschlamm'!$D$14:$D$21,KA_NR9,'Kosten Nassschlamm'!$E$14:$E$21,\"Aufbringung Nassschlamm aus KA\")+SUMIFS('Kosten Nassschlamm'!$L$14:$L$21,'Kosten Nassschlamm'!$B$14:$B$21,JAHR,'Kosten Nassschlamm'!$D$14:$D$21,KA_NR9,'Kosten Nassschlamm'!$E$14:$E$21,\"Aufbringung Nassschlamm aus Güllelager\")","v":0},{"$f":"SUMIFS('Kosten Nassschlamm'!$L$14:$L$21,'Kosten Nassschlamm'!$B$14:$B$21,JAHR,'Kosten Nassschlamm'!$D$14:$D$21,KA_NR9,'Kosten Nassschlamm'!$E$14:$E$21,\"Transport zur KA für Entwässerung\")","v":0},{"$f":"SUMIFS('Kosten Nassschlamm'!$L$14:$L$21,'Kosten Nassschlamm'!$B$14:$B$21,JAHR,'Kosten Nassschlamm'!$D$14:$D$21,KA_NR9,'Kosten Nassschlamm'!$E$14:$E$21,\"Transport in das Güllelager\")","v":0},{"$f":"SUMIFS('Kosten Nassschlamm'!$K$14:$K$21,'Kosten Nassschlamm'!$B$14:$B$21,JAHR,'Kosten Nassschlamm'!$D$14:$D$21,KA_NR9,'Kosten Nassschlamm'!$E$14:$E$21,\"Aufbringung Nassschlamm aus KA\",'Kosten Nassschlamm'!$F$14:$F$21,\"direkt\")+SUMIFS('Kosten Nassschlamm'!$K$14:$K$21,'Kosten Nassschlamm'!$B$14:$B$21,JAHR,'Kosten Nassschlamm'!$D$14:$D$21,KA_NR9,'Kosten Nassschlamm'!$E$14:$E$21,\"Aufbringung Nassschlamm aus Güllelager\",'Kosten Nassschlamm'!$F$14:$F$21,\"direkt\")","v":0},{"$f":"SUMIFS('Kosten Nassschlamm'!$K$14:$K$21,'Kosten Nassschlamm'!$B$14:$B$21,JAHR,'Kosten Nassschlamm'!$D$14:$D$21,KA_NR9,'Kosten Nassschlamm'!$E$14:$E$21,\"Transport zur KA für Entwässerung\",'Kosten Nassschlamm'!$F$14:$F$21,\"direkt\")","v":0},{"$f":"SUMIFS('Kosten Nassschlamm'!$K$14:$K$21,'Kosten Nassschlamm'!$B$14:$B$21,JAHR,'Kosten Nassschlamm'!$D$14:$D$21,KA_NR9,'Kosten Nassschlamm'!$E$14:$E$21,\"Transport in das Güllelager\",'Kosten Nassschlamm'!$F$14:$F$21,\"direkt\")","v":0},0,0,0,{"$f":"SUMIFS('Kosten Nassschlamm'!$K$11:$K$52,'Kosten Nassschlamm'!$B$11:$B$52,JAHR,'Kosten Nassschlamm'!$D$11:$D$52,KA_NR9)+SUM(J18:K18)","v":0},"n.n.",{"$f":"SUMIFS('Kosten Nassschlamm'!$K$14:$K$21,'Kosten Nassschlamm'!$B$14:$B$21,JAHR,'Kosten Nassschlamm'!$D$14:$D$21,KA_NR9,'Kosten Nassschlamm'!$E$14:$E$21,\"Transport zur KA für Entwässerung\",'Kosten Nassschlamm'!$F$14:$F$21,\"direkt\")","v":0},{"$f":"SUMIFS('Kosten Nassschlamm'!$K$14:$K$21,'Kosten Nassschlamm'!$B$14:$B$21,JAHR,'Kosten Nassschlamm'!$D$14:$D$21,KA_NR9,'Kosten Nassschlamm'!$E$14:$E$21,\"Transport in das Güllelager\",'Kosten Nassschlamm'!$F$14:$F$21,\"direkt\")","v":0},0,{"$f":"IFERROR(Q18/'Kosten Nassschlamm'!I7,\"Nicht möglich wegen fehlender Angaben!\")","v":"Nicht möglich wegen fehlender Angaben!"}]
[null,{"$f":"KA_NR10","v":"KA 7"},{"$f":"SUMIFS('Kosten Nassschlamm'!$H$14:$H$21,'Kosten Nassschlamm'!$B$14:$B$21,JAHR,'Kosten Nassschlamm'!$D$14:$D$21,KA_NR10,'Kosten Nassschlamm'!$E$14:$E$21,\"Aufbringung Nassschlamm aus KA\")+SUMIFS('Kosten Nassschlamm'!$H$14:$H$21,'Kosten Nassschlamm'!$B$14:$B$21,JAHR,'Kosten Nassschlamm'!$D$14:$D$21,KA_NR10,'Kosten Nassschlamm'!$E$14:$E$21,\"Aufbringung Nassschlamm aus Güllelager\")","v":0},{"$f":"SUMIFS('Kosten Nassschlamm'!$L$14:$L$21,'Kosten Nassschlamm'!$B$14:$B$21,JAHR,'Kosten Nassschlamm'!$D$14:$D$21,KA_NR10,'Kosten Nassschlamm'!$E$14:$E$21,\"Aufbringung Nassschlamm aus KA\")+SUMIFS('Kosten Nassschlamm'!$L$14:$L$21,'Kosten Nassschlamm'!$B$14:$B$21,JAHR,'Kosten Nassschlamm'!$D$14:$D$21,KA_NR10,'Kosten Nassschlamm'!$E$14:$E$21,\"Aufbringung Nassschlamm aus Güllelager\")","v":0},{"$f":"SUMIFS('Kosten Nassschlamm'!$L$14:$L$21,'Kosten Nassschlamm'!$B$14:$B$21,JAHR,'Kosten Nassschlamm'!$D$14:$D$21,KA_NR10,'Kosten Nassschlamm'!$E$14:$E$21,\"Transport zur KA für Entwässerung\")","v":0},{"$f":"SUMIFS('Kosten Nassschlamm'!$L$14:$L$21,'Kosten Nassschlamm'!$B$14:$B$21,JAHR,'Kosten Nassschlamm'!$D$14:$D$21,KA_NR10,'Kosten Nassschlamm'!$E$14:$E$21,\"Transport in das Güllelager\")","v":0},{"$f":"SUMIFS('Kosten Nassschlamm'!$K$14:$K$21,'Kosten Nassschlamm'!$B$14:$B$21,JAHR,'Kosten Nassschlamm'!$D$14:$D$21,KA_NR10,'Kosten Nassschlamm'!$E$14:$E$21,\"Aufbringung Nassschlamm aus KA\",'Kosten Nassschlamm'!$F$14:$F$21,\"direkt\")+SUMIFS('Kosten Nassschlamm'!$K$14:$K$21,'Kosten Nassschlamm'!$B$14:$B$21,JAHR,'Kosten Nassschlamm'!$D$14:$D$21,KA_NR10,'Kosten Nassschlamm'!$E$14:$E$21,\"Aufbringung Nassschlamm aus Güllelager\",'Kosten Nassschlamm'!$F$14:$F$21,\"direkt\")","v":0},{"$f":"SUMIFS('Kosten Nassschlamm'!$K$14:$K$21,'Kosten Nassschlamm'!$B$14:$B$21,JAHR,'Kosten Nassschlamm'!$D$14:$D$21,KA_NR10,'Kosten Nassschlamm'!$E$14:$E$21,\"Transport zur KA für Entwässerung\",'Kosten Nassschlamm'!$F$14:$F$21,\"direkt\")","v":0},{"$f":"SUMIFS('Kosten Nassschlamm'!$K$14:$K$21,'Kosten Nassschlamm'!$B$14:$B$21,JAHR,'Kosten Nassschlamm'!$D$14:$D$21,KA_NR10,'Kosten Nassschlamm'!$E$14:$E$21,\"Transport in das Güllelager\",'Kosten Nassschlamm'!$F$14:$F$21,\"direkt\")","v":0},0,0,0,{"$f":"SUMIFS('Kosten Nassschlamm'!$K$11:$K$52,'Kosten Nassschlamm'!$B$11:$B$52,JAHR,'Kosten Nassschlamm'!$D$11:$D$52,KA_NR10)+SUM(J19:K19)","v":0},"n.n.",{"$f":"SUMIFS('Kosten Nassschlamm'!$K$14:$K$21,'Kosten Nassschlamm'!$B$14:$B$21,JAHR,'Kosten Nassschlamm'!$D$14:$D$21,KA_NR10,'Kosten Nassschlamm'!$E$14:$E$21,\"Transport zur KA für Entwässerung\",'Kosten Nassschlamm'!$F$14:$F$21,\"direkt\")","v":0},{"$f":"SUMIFS('Kosten Nassschlamm'!$K$14:$K$21,'Kosten Nassschlamm'!$B$14:$B$21,JAHR,'Kosten Nassschlamm'!$D$14:$D$21,KA_NR10,'Kosten Nassschlamm'!$E$14:$E$21,\"Transport in das Güllelager\",'Kosten Nassschlamm'!$F$14:$F$21,\"direkt\")","v":0},0,{"$f":"IFERROR(Q19/'Kosten Nassschlamm'!J7,\"Nicht möglich wegen fehlender Angaben!\")","v":"Nicht möglich wegen fehlender Angaben!"}]
[null,{"$f":"KA_NR11","v":"KA 8"},{"$f":"SUMIFS('Kosten Nassschlamm'!$H$14:$H$21,'Kosten Nassschlamm'!$B$14:$B$21,JAHR,'Kosten Nassschlamm'!$D$14:$D$21,KA_NR11,'Kosten Nassschlamm'!$E$14:$E$21,\"Aufbringung Nassschlamm aus KA\")+SUMIFS('Kosten Nassschlamm'!$H$14:$H$21,'Kosten Nassschlamm'!$B$14:$B$21,JAHR,'Kosten Nassschlamm'!$D$14:$D$21,KA_NR11,'Kosten Nassschlamm'!$E$14:$E$21,\"Aufbringung Nassschlamm aus Güllelager\")","v":0},{"$f":"SUMIFS('Kosten Nassschlamm'!$L$14:$L$21,'Kosten Nassschlamm'!$B$14:$B$21,JAHR,'Kosten Nassschlamm'!$D$14:$D$21,KA_NR11,'Kosten Nassschlamm'!$E$14:$E$21,\"Aufbringung Nassschlamm aus KA\")+SUMIFS('Kosten Nassschlamm'!$L$14:$L$21,'Kosten Nassschlamm'!$B$14:$B$21,JAHR,'Kosten Nassschlamm'!$D$14:$D$21,KA_NR11,'Kosten Nassschlamm'!$E$14:$E$21,\"Aufbringung Nassschlamm aus Güllelager\")","v":0},{"$f":"SUMIFS('Kosten Nassschlamm'!$L$14:$L$21,'Kosten Nassschlamm'!$B$14:$B$21,JAHR,'Kosten Nassschlamm'!$D$14:$D$21,KA_NR11,'Kosten Nassschlamm'!$E$14:$E$21,\"Transport zur KA für Entwässerung\")","v":0},{"$f":"SUMIFS('Kosten Nassschlamm'!$L$14:$L$21,'Kosten Nassschlamm'!$B$14:$B$21,JAHR,'Kosten Nassschlamm'!$D$14:$D$21,KA_NR11,'Kosten Nassschlamm'!$E$14:$E$21,\"Transport in das Güllelager\")","v":0},{"$f":"SUMIFS('Kosten Nassschlamm'!$K$14:$K$21,'Kosten Nassschlamm'!$B$14:$B$21,JAHR,'Kosten Nassschlamm'!$D$14:$D$21,KA_NR11,'Kosten Nassschlamm'!$E$14:$E$21,\"Aufbringung Nassschlamm aus KA\",'Kosten Nassschlamm'!$F$14:$F$21,\"direkt\")+SUMIFS('Kosten Nassschlamm'!$K$14:$K$21,'Kosten Nassschlamm'!$B$14:$B$21,JAHR,'Kosten Nassschlamm'!$D$14:$D$21,KA_NR11,'Kosten Nassschlamm'!$E$14:$E$21,\"Aufbringung Nassschlamm aus Güllelager\",'Kosten Nassschlamm'!$F$14:$F$21,\"direkt\")","v":0},{"$f":"SUMIFS('Kosten Nassschlamm'!$K$14:$K$21,'Kosten Nassschlamm'!$B$14:$B$21,JAHR,'Kosten Nassschlamm'!$D$14:$D$21,KA_NR11,'Kosten Nassschlamm'!$E$14:$E$21,\"Transport zur KA für Entwässerung\",'Kosten Nassschlamm'!$F$14:$F$21,\"direkt\")","v":0},{"$f":"SUMIFS('Kosten Nassschlamm'!$K$14:$K$21,'Kosten Nassschlamm'!$B$14:$B$21,JAHR,'Kosten Nassschlamm'!$D$14:$D$21,KA_NR11,'Kosten Nassschlamm'!$E$14:$E$21,\"Transport in das Güllelager\",'Kosten Nassschlamm'!$F$14:$F$21,\"direkt\")","v":0},0,0,0,{"$f":"SUMIFS('Kosten Nassschlamm'!$K$11:$K$52,'Kosten Nassschlamm'!$B$11:$B$52,JAHR,'Kosten Nassschlamm'!$D$11:$D$52,KA_NR11)+SUM(J20:K20)","v":0},"n.n.",{"$f":"SUMIFS('Kosten Nassschlamm'!$K$14:$K$21,'Kosten Nassschlamm'!$B$14:$B$21,JAHR,'Kosten Nassschlamm'!$D$14:$D$21,KA_NR11,'Kosten Nassschlamm'!$E$14:$E$21,\"Transport zur KA für Entwässerung\",'Kosten Nassschlamm'!$F$14:$F$21,\"direkt\")","v":0},{"$f":"SUMIFS('Kosten Nassschlamm'!$K$14:$K$21,'Kosten Nassschlamm'!$B$14:$B$21,JAHR,'Kosten Nassschlamm'!$D$14:$D$21,KA_NR11,'Kosten Nassschlamm'!$E$14:$E$21,\"Transport in das Güllelager\",'Kosten Nassschlamm'!$F$14:$F$21,\"direkt\")","v":0},0,{"$f":"IFERROR(Q20/'Kosten Nassschlamm'!K7,\"Nicht möglich wegen fehlender Angaben!\")","v":"Nicht möglich wegen fehlender Angaben!"}]
[null,"Verteilung",{"$nulls":7},{"$f":"-SUMIFS('Kosten Nassschlamm'!$K$14:$K$21,'Kosten Nassschlamm'!$B$14:$B$21,JAHR,'Kosten Nassschlamm'!$E$14:$E$21,\"Miete Behälter Güllelager\",'Kosten Nassschlamm'!$F$14:$F$21,\"<>direkt\")","v":0},{"$f":"-SUMIFS('Kosten Nassschlamm'!$K$14:$K$21,'Kosten Nassschlamm'!$B$14:$B$21,JAHR,'Kosten Nassschlamm'!$E$14:$E$21,\"Untersuchung Probe Nassschlamm\",'Kosten Nassschlamm'!$F$14:$F$21,\"<>direkt\")","v":0}]

{"sheet":"Grunddaten","index":1,"n_rows":23,"n_cols":18,"rows_kept":23,"cut":false,"hidden":false,"merged":[[15,0,22,0],[1,0,1,1],[6,0,7,1],[6,2,6,6],[6,8,6,17],[9,0,11,0],[12,2,12,6],[12,9,12,11],[12,15,12,17],[12,12,12,14],[7,9,7,11]]}
["Plausibilität","Ergebnisse"]
["Stammdaten"]
["Name der Abwasserbeseitigung","Abwasserbeseitigung XYZ"]
["Daten des Wirtschaftsjahres",2015]
["Zinssatz für Verzinsung des eingesetzten Kapitals",0.02]
["Version Stand 2016-12-16"]
["Kläranlagen",null,"Plausibilitätsüberlegung  (Anlieferung zur Entwässerung im Verhältnis zur Entsorgung/Aufbringung auf Fläche)",{"$nulls":5},"Zusammenfassung der Ergebnisse"]
[null,null,"Anlieferung Nassschlamm","Umrechnung \nmit TS 3 %","Aufbringung \nauf Fläche","Differenz","Erläuterung einer evtl. Differenz",null,"Menge","Menge * TS in %",null,null,"Kosten Entwässerung","Kosten Aufbringung inkl. Proben","Summe",null,null,"Differenz"]
[null,"Summe",{"$f":"SUM(C10:C12)","v":0},{"$f":"SUM(D10:D12)","v":0},{"$f":"SUM(E10:E12)","v":0},{"$f":"SUM(F10:F12)","v":0},null,null,{"$f":"SUM(I10:I12)","v":0},{"$f":"SUM(J10:J12)","v":0},null,null,{"$f":"SUM(M10:M12)","v":0},{"$f":"SUM(N10:N12)","v":0},{"$f":"SUM(O10:O12)","v":0}]
["Einsatz mit Klärschlammentwässerung","KA 1 mit Entwässerung",{"$f":"'Anlieferung zur Entwässerung'!D3","v":0},{"$f":"'Anlieferung zur Entwässerung'!F3","v":0},{"$f":"Ergebnisse!D7","v":0},{"$f":"E10-D10","v":0},null,null,{"$f":"Ergebnisse!C7","v":0},{"$f":"Ergebnisse!D7","v":0},null,null,{"$f":"Ergebnisse!N7","v":"n.n."},{"$f":"Ergebnisse!R7","v":"n.n."},{"$f":"IF(AND(ISNUMBER(M10),ISNUMBER(N10)),SUM(M10:N10),\"n.n.\")","v":"n.n."},null,null,{"$f":"IF(ISNUMBER(O10),O10-MIN($O$10:$O$12,$O$16:$O$23),\"n.n.\")","v":"n.n."}]
[null,"KA 2",{"$f":"'Anlieferung zur Entwässerung'!D4","v":0},{"$f":"'Anlieferung zur Entwässerung'!F4","v":0},{"$f":"Ergebnisse!D8","v":0},{"$f":"E11-D11","v":0},null,null,{"$f":"Ergebnisse!C8","v":0},{"$f":"Ergebnisse!D8","v":0},null,null,{"$f":"Ergebnisse!N8","v":"n.n."},{"$f":"Ergebnisse!R8","v":"n.n."},{"$f":"IF(AND(ISNUMBER(M11),ISNUMBER(N11)),SUM(M11:N11),\"n.n.\")","v":"n.n."},null,null,{"$f":"IF(ISNUMBER(O11),O11-MIN($O$10:$O$12,$O$16:$O$23),\"n.n.\")","v":"n.n."}]
[null,"KA 3",{"$f":"'Anlieferung zur Entwässerung'!D5","v":0},{"$f":"'Anlieferung zur Entwässerung'!F5","v":0},{"$f":"Ergebnisse!D9","v":0},{"$f":"E12-D12","v":0},null,null,{"$f":"Ergebnisse!C9","v":0},{"$f":"Ergebnisse!D9","v":0},null,null,{"$f":"Ergebnisse!N9","v":"n.n."},{"$f":"Ergebnisse!R9","v":"n.n."},{"$f":"IF(AND(ISNUMBER(M12),ISNUMBER(N12)),SUM(M12:N12),\"n.n.\")","v":"n.n."},null,null,{"$f":"IF(ISNUMBER(O12),O12-MIN($O$10:$O$12,$O$16:$O$23),\"n.n.\")","v":"n.n."}]
[null,null,"Plausibilitätsüberlegung  (Ausbringungsmenge und Mengen einschließlich Transport)",{"$nulls":5},"Menge * TS in %","Menge * TS in %",null,null,"Kosten Nassschlamm",null,null,"Vergleich"]
[null,null,"Ausbringung\nNassschlamm","Menge inkl.\nTransport","Menge zur KA für Entwässerung","Differenz\nMenge Güllelager","Noch entstehende Kosten zur Ausbringung der Mengen Nassschlamm (Schätzung)",null,"Ausbringung","Ausbringung","Transport zur KA","Transport in das Güllelager","Noch entstehende Kosten zur Ausbringung der Differenz-mengen Nassschlamm (Schätzung)","Bereits erfasste Kosten \nAufbringung Nassschlamm","Summe je Menge * TS in %","Klärschlammentwässerung\nje Menge * TS in %","Transportkosten zur \nKA für Entwässerung\nje Menge"]
[null,"Summe",{"$f":"SUM(C16:C23)","v":0},{"$f":"SUM(D16:D23)","v":0},{"$f":"SUM(E16:E23)","v":0},{"$f":"SUM(F16:F23)","v":0},{"$f":"IFERROR((SUMIFS('Kosten Nassschlamm'!$K$14:$K$21,'Kosten Nassschlamm'!B14:B21,JAHR,'Kosten Nassschlamm'!$E$14:$E$21,\"Aufbringung Nassschlamm aus KA\")+SUMIFS('Kosten Nassschlamm'!$K$14:$K$21,'Kosten Nassschlamm'!B14:B21,JAHR,'Kosten Nassschlamm'!$E$14:$E$21,\"Aufbringung Nassschlamm aus Güllelager\"))/'Kosten Nassschlamm'!C6*(SUMIFS('Kosten Nassschlamm'!$L$14:$L$21,'Kosten Nassschlamm'!B14:B21,JAHR,'Kosten Nassschlamm'!$E$14:$E$21,\"Transport in das Güllelager\")-SUMIFS('Kosten Nassschlamm'!$L$14:$L$21,'Kosten Nassschlamm'!B14:B21,JAHR,'Kosten Nassschlamm'!$E$14:$E$21,\"Aufbringung Nassschlamm aus Güllelager\")),0)","v":0},null,{"$f":"SUM(I16:I23)","v":0},{"$f":"SUM(J16:J23)","v":0},{"$f":"SUM(K16:K23)","v":0},{"$f":"SUM(L16:L23)","v":0},{"$f":"G15","v":0},{"$f":"Ergebnisse!M12","v":0},{"$f":"IFERROR(SUM(M15:N15)/SUM(J15:L15),\"n.n.\")","v":"n.n."},{"$f":"$O$9","v":0},{"$f":"Ergebnisse!R12","v":"Nicht möglich wegen fehlender Angaben!"}]
["Einsatz ohne Klärschlammentwässerung","KA 1 ohne Entwässerung",{"$f":"Ergebnisse!C13","v":0},{"$f":"'Kosten Nassschlamm'!D4+'Kosten Nassschlamm'!D7-'Kosten Nassschlamm'!D5","v":0},{"$f":"SUMIFS('Kosten Nassschlamm'!$H$14:$H$21,'Kosten Nassschlamm'!$B$14:$B$21,JAHR,'Kosten Nassschlamm'!$D$14:$D$21,KA_NR4,'Kosten Nassschlamm'!$E$14:$E$21,\"Transport zur KA für Entwässerung\")","v":0},{"$f":"D16-C16-E16","v":0},{"$f":"IFERROR($G$15/$F$15*F16,0)","v":0},null,{"$f":"Ergebnisse!C13","v":0},{"$f":"Ergebnisse!D13","v":0},{"$f":"Ergebnisse!E13","v":0},{"$f":"Ergebnisse!F13","v":0},{"$f":"G16","v":0},{"$f":"Ergebnisse!M13","v":0},{"$f":"IFERROR(SUM(M16:N16)/SUM(J16:L16),\"n.n.\")","v":"n.n."},{"$f":"$O$9","v":0},{"$f":"Ergebnisse!R13","v":"Nicht möglich wegen fehlender Angaben!"}]
[null,"KA 2 ohne Entwässerung",{"$f":"Ergebnisse!C14","v":0},{"$f":"'Kosten Nassschlamm'!E4+'Kosten Nassschlamm'!E7-'Kosten Nassschlamm'!E5","v":0},{"$f":"SUMIFS('Kosten Nassschlamm'!$H$14:$H$21,'Kosten Nassschlamm'!$B$14:$B$21,JAHR,'Kosten Nassschlamm'!$D$14:$D$21,KA_NR5,'Kosten Nassschlamm'!$E$14:$E$21,\"Transport zur KA für Entwässerung\")","v":0},0,{"$f":"IFERROR($G$15/$F$15*F17,0)","v":0},null,{"$f":"Ergebnisse!C14","v":0},{"$f":"Ergebnisse!D14","v":0},{"$f":"Ergebnisse!E14","v":0},{"$f":"Ergebnisse!F14","v":0},{"$f":"G17","v":0},{"$f":"Ergebnisse!M14","v":0},{"$f":"IFERROR(SUM(M17:N17)/SUM(J17:L17),\"n.n.\")","v":"n.n."},{"$f":"$O$9","v":0},{"$f":"Ergebnisse!R14","v":"Nicht möglich wegen fehlender Angaben!"}]
[null,"KA 3 ohne Entwässerung",{"$f":"Ergebnisse!C15","v":0},{"$f":"'Kosten Nassschlamm'!F4+'Kosten Nassschlamm'!F7-'Kosten Nassschlamm'!F5","v":0},{"$f":"SUMIFS('Kosten Nassschlamm'!$H$14:$H$21,'Kosten Nassschlamm'!$B$14:$B$21,JAHR,'Kosten Nassschlamm'!$D$14:$D$21,KA_NR6,'Kosten Nassschlamm'!$E$14:$E$21,\"Transport zur KA für Entwässerung\")","v":0},0,0,null,{"$f":"Ergebnisse!C15","v":0},{"$f":"Ergebnisse!D15","v":0},{"$f":"Ergebnisse!E15","v":0},{"$f":"Ergebnisse!F15","v":0},0,{"$f":"Ergebnisse!M15","v":0},"n.n.",0,{"$f":"Ergebnisse!R15","v":"Nicht möglich wegen fehlender Angaben!"}]
[null,"KA 4",{"$f":"Ergebnisse!C16","v":0},{"$f":"'Kosten Nassschlamm'!G4+'Kosten Nassschlamm'!G7-'Kosten Nassschlamm'!G5","v":0},{"$f":"SUMIFS('Kosten Nassschlamm'!$H$14:$H$21,'Kosten Nassschlamm'!$B$14:$B$21,JAHR,'Kosten Nassschlamm'!$D$14:$D$21,KA_NR7,'Kosten Nassschlamm'!$E$14:$E$21,\"Transport zur KA für Entwässerung\")","v":0},0,0,null,{"$f":"Ergebnisse!C16","v":0},{"$f":"Ergebnisse!D16","v":0},{"$f":"Ergebnisse!E16","v":0},{"$f":"Ergebnisse!F16","v":0},0,{"$f":"Ergebnisse!M16","v":0},"n.n.",0,{"$f":"Ergebnisse!R16","v":"Nicht möglich wegen fehlender Angaben!"}]
[null,"KA 5",{"$f":"Ergebnisse!C17","v":0},{"$f":"'Kosten Nassschlamm'!H4+'Kosten Nassschlamm'!H7-'Kosten Nassschlamm'!H5","v":0},{"$f":"SUMIFS('Kosten Nassschlamm'!$H$14:$H$21,'Kosten Nassschlamm'!$B$14:$B$21,JAHR,'Kosten Nassschlamm'!$D$14:$D$21,KA_NR8,'Kosten Nassschlamm'!$E$14:$E$21,\"Transport zur KA für Entwässerung\")","v":0},0,0,null,{"$f":"Ergebnisse!C17","v":0},{"$f":"Ergebnisse!D17","v":0},{"$f":"Ergebnisse!E17","v":0},{"$f":"Ergebnisse!F17","v":0},0,{"$f":"Ergebnisse!M17","v":0},"n.n.",0,{"$f":"Ergebnisse!R17","v":"Nicht möglich wegen fehlender Angaben!"}]
[null,"KA 6",{"$f":"Ergebnisse!C18","v":0},{"$f":"'Kosten Nassschlamm'!I4+'Kosten Nassschlamm'!I7-'Kosten Nassschlamm'!I5","v":0},{"$f":"SUMIFS('Kosten Nassschlamm'!$H$14:$H$21,'Kosten Nassschlamm'!$B$14:$B$21,JAHR,'Kosten Nassschlamm'!$D$14:$D$21,KA_NR9,'Kosten Nassschlamm'!$E$14:$E$21,\"Transport zur KA für Entwässerung\")","v":0},0,0,null,{"$f":"Ergebnisse!C18","v":0},{"$f":"Ergebnisse!D18","v":0},{"$f":"Ergebnisse!E18","v":0},{"$f":"Ergebnisse!F18","v":0},0,{"$f":"Ergebnisse!M18","v":0},"n.n.",0,{"$f":"Ergebnisse!R18","v":"Nicht möglich wegen fehlender Angaben!"}]
[null,"KA 7",{"$f":"Ergebnisse!C19","v":0},{"$f":"'Kosten Nassschlamm'!J4+'Kosten Nassschlamm'!J7-'Kosten Nassschlamm'!J5","v":0},{"$f":"SUMIFS('Kosten Nassschlamm'!$H$14:$H$21,'Kosten Nassschlamm'!$B$14:$B$21,JAHR,'Kosten Nassschlamm'!$D$14:$D$21,KA_NR10,'Kosten Nassschlamm'!$E$14:$E$21,\"Transport zur KA für Entwässerung\")","v":0},0,0,null,{"$f":"Ergebnisse!C19","v":0},{"$f":"Ergebnisse!D19","v":0},{"$f":"Ergebnisse!E19","v":0},{"$f":"Ergebnisse!F19","v":0},0,{"$f":"Ergebnisse!M19","v":0},"n.n.",0,{"$f":"Ergebnisse!R19","v":"Nicht möglich wegen fehlender Angaben!"}]
[null,"KA 8",{"$f":"Ergebnisse!C20","v":0},{"$f":"'Kosten Nassschlamm'!K4+'Kosten Nassschlamm'!K7-'Kosten Nassschlamm'!K5","v":0},{"$f":"SUMIFS('Kosten Nassschlamm'!$H$14:$H$21,'Kosten Nassschlamm'!$B$14:$B$21,JAHR,'Kosten Nassschlamm'!$D$14:$D$21,KA_NR11,'Kosten Nassschlamm'!$E$14:$E$21,\"Transport zur KA für Entwässerung\")","v":0},0,0,null,{"$f":"Ergebnisse!C20","v":0},{"$f":"Ergebnisse!D20","v":0},{"$f":"Ergebnisse!E20","v":0},{"$f":"Ergebnisse!F20","v":0},0,{"$f":"Ergebnisse!M20","v":0},"n.n.",0,{"$f":"Ergebnisse!R20","v":"Nicht möglich wegen fehlender Angaben!"}]

{"sheet":"Liste Landwirte","index":2,"n_rows":16,"n_cols":2,"rows_kept":16,"cut":false,"hidden":false,"merged":[[1,0,1,1]]}
[null,6]
[{"$f":"CONCATENATE(\"Liste der Entsorger/Landwirte für Aufbringung \",JAHR)","v":"Liste der Entsorger/Landwirte für Aufbringung 2015"}]
["Gesamt",{"$f":"COUNTA(A4:A16)-3","v":10}]
["LW Nr.","Name des Entsorgers/Landwirts"]
[{"$f":"ROW(A5)-$B$1","v":-1},"Kläranlage mit Entwässerung"]
[0,"Lagerplatz für Gülle"]
[1,"LW 1"]
[2,"LW 2"]
[3,"LW 3"]
[4,"LW 4"]
[5,"LW 5"]
[6,"LW 7"]
[7,"LW 7"]
[8,"LW 8"]
[9,"LW 9"]
[10,"LW 10"]

{"sheet":"Personalliste","index":3,"n_rows":13,"n_cols":2,"rows_kept":13,"cut":false,"hidden":false,"merged":[[1,0,1,1]]}
[null,4]
[{"$f":"CONCATENATE(\"Personalliste \",JAHR)","v":"Personalliste 2015"}]
["Gesamt",{"$f":"COUNTA(A4:A13)-1","v":9}]
["MA Nr.","Name des Mitarbeiters"]
[{"$f":"ROW(A5)-$B$1","v":1},"Mitarbeiter 1"]
[2,"Mitarbeiter 2"]
[3,"Mitarbeiter 3"]
[4,"Mitarbeiter 4"]
[5,"Mitarbeiter 5"]
[6,"Mitarbeiter 6"]
[7,"Mitarbeiter 7"]
[8,"Mitarbeiter 8"]
[9,"Mitarbeiter 9"]

{"sheet":"Anlieferung zur Entwässerung","index":4,"n_rows":10,"n_cols":6,"rows_kept":10,"cut":false,"hidden":false,"merged":[[1,0,1,5]]}
[null,8,"d","d","d","d"]
[{"$f":"CONCATENATE(\"Anlieferung Nassschlammmenge zur Entwässerung des Jahres \",JAHR)","v":"Anlieferung Nassschlammmenge zur Entwässerung des Jahres 2015"}]
[null,{"$f":"JAHR","v":2015},{"$f":"KA_NR1","v":"KA 1 mit Entwässerung"},{"$f":"SUMIFS($D$8:$D$10,$C$8:$C$10,$C3,$B$8:$B$10,JAHR)","v":0},null,{"$f":"SUMIFS($F$8:$F$10,$C$8:$C$10,$C3,$B$8:$B$10,JAHR)","v":0}]
[null,null,{"$f":"KA_NR2","v":"KA 2"},{"$f":"SUMIFS($D$8:$D$10,$C$8:$C$10,$C4,$B$8:$B$10,JAHR)","v":0},null,{"$f":"SUMIFS($F$8:$F$10,$C$8:$C$10,$C4,$B$8:$B$10,JAHR)","v":0}]
[null,null,{"$f":"KA_NR3","v":"KA 3"},{"$f":"SUMIFS($D$8:$D$10,$C$8:$C$10,$C5,$B$8:$B$10,JAHR)","v":0},null,{"$f":"SUMIFS($F$8:$F$10,$C$8:$C$10,$C5,$B$8:$B$10,JAHR)","v":0}]
[null,"Teilergebnis (Filter)",{"$f":"SUBTOTAL(3,A8:A10)-1","v":2},{"$f":"SUBTOTAL(9,D8:D10)","v":0},null,{"$f":"SUBTOTAL(9,F8:F10)","v":0}]
[null,"Gesamt (Eingaben)",{"$f":"COUNTA(A8:A10)-1","v":2},{"$f":"SUM(D8:D10)","v":0},null,{"$f":"SUM(F8:F10)","v":0}]
["NS Nr.","Jahr","Kläranlage","Menge Anlieferung \nNassschlamm zur Entwässerung","TS in %","Menge * TS in %"]
[{"$f":"ROW(A9)-$B$1","v":1},2016,"KA 1 mit Entwässerung",null,null,{"$f":"D9*E9","v":0}]
[{"$f":"ROW(A10)-$B$1","v":2},2015,"KA 1 mit Entwässerung",null,null,{"$f":"D10*E10","v":0}]

{"sheet":"Anlagevermögen","index":5,"n_rows":17,"n_cols":12,"rows_kept":17,"cut":false,"hidden":false,"merged":[[1,0,1,9]]}
[null,8,"d","d","d","d","d","d","d","d"]
[{"$f":"CONCATENATE(\"Anlagennachweis Klärschlammentwässerung des Jahres \",JAHR)","v":"Anlagennachweis Klärschlammentwässerung des Jahres 2015"}]
[null,{"$f":"JAHR","v":2015},{"$f":"KA_NR1","v":"KA 1 mit Entwässerung"},{"$f":"SUMIFS(D$8:D$17,$B$8:$B$17,JAHR,$C$8:$C$17,$C3)","v":0},null,null,{"$f":"SUMIF($C$8:$C$17,$C3,G$8:G$17)","v":0},0,0,0,0]
[null,null,{"$f":"KA_NR2","v":"KA 2"},{"$f":"SUMIFS(D$8:D$17,$B$8:$B$17,JAHR,$C$8:$C$17,$C4)","v":0},null,null,0,0,0,0,0]
[null,null,{"$f":"KA_NR3","v":"KA 3"},{"$f":"SUMIFS(D$8:D$17,$B$8:$B$17,JAHR,$C$8:$C$17,$C5)","v":0},null,null,0,0,0,0,0]
[null,"Teilergebnis (Filter)",{"$f":"SUBTOTAL(3,A8:A17)-1","v":9},{"$f":"SUBTOTAL(9,D8:D17)","v":0},null,null,{"$f":"SUBTOTAL(9,G8:G17)","v":0},{"$f":"SUBTOTAL(9,H8:H17)","v":0},{"$f":"SUBTOTAL(9,I8:I17)","v":0},{"$f":"SUBTOTAL(9,J8:J17)","v":0},{"$f":"SUBTOTAL(9,K8:K17)","v":0}]
[null,"Gesamt (Eingaben)",{"$f":"COUNTA(A8:A17)-1","v":9},{"$f":"SUM(D8:D17)","v":0},null,null,{"$f":"SUM(G8:G17)","v":0},{"$f":"SUM(H8:H17)","v":0},{"$f":"SUM(I8:I17)","v":0},{"$f":"SUM(J8:J17)","v":0},{"$f":"SUM(K8:K17)","v":0}]
["AV Nr.","Jahr","Kläranlage","Investionskosten\nKlärschlammentwässerung","AfA %","ND","AfA €","RBW 1.1.","RBW 31.12.","Verzinsung \nKapital","Absolut","Vorzeichen"]
[{"$f":"ROW(A9)-$B$1","v":1},{"$nulls":4},{"$f":"IFERROR(1/E9,\"unbegrenzt\")","v":"unbegrenzt"},{"$f":"IFERROR(MAX(0,$K9/$F9*MIN($B9-JAHR+$F9,1)*MIN(JAHR-$B9+1,1))*$L9,0)","v":0},{"$f":"IFERROR(IF(JAHR-1-$B9>=0,MAX(0,$K9-(JAHR-1-$B9+1)*$K9/$F9),0)*$L9,0)","v":0},{"$f":"IFERROR(IF(JAHR-$B9>=0,MAX(0,$K9-(JAHR-$B9+1)*$K9/$F9),0)*$L9,$K9)","v":0},{"$f":"AVERAGE(H9,I9)*ZINSSATZ","v":0},{"$f":"ABS(D9)","v":0},{"$f":"IF(D9<0,-1,1)","v":1}]
[2,{"$nulls":4},"unbegrenzt",0,0,0,0,0,1]
[3,{"$nulls":4},{"$f":"IFERROR(1/E11,\"unbegrenzt\")","v":"unbegrenzt"},0,0,0,{"$f":"AVERAGE(H11,I11)*ZINSSATZ","v":0},0,1]
[4,{"$nulls":4},"unbegrenzt",0,0,0,0,0,1]
[5,{"$nulls":4},{"$f":"IFERROR(1/E13,\"unbegrenzt\")","v":"unbegrenzt"},0,0,0,{"$f":"AVERAGE(H13,I13)*ZINSSATZ","v":0},0,1]
[6,{"$nulls":4},"unbegrenzt",0,0,0,0,0,1]
[7,{"$nulls":4},"unbegrenzt",0,0,0,0,0,1]
[8,{"$nulls":4},"unbegrenzt",0,0,0,0,{"$f":"ABS(D16)","v":0},{"$f":"IF(D16<0,-1,1)","v":1}]
[9,{"$nulls":4},{"$f":"IFERROR(1/E17,\"unbegrenzt\")","v":"unbegrenzt"},0,0,0,{"$f":"AVERAGE(H17,I17)*ZINSSATZ","v":0},0,1]

{"sheet":"Personalkosten","index":6,"n_rows":17,"n_cols":7,"rows_kept":17,"cut":false,"hidden":false,"merged":[[1,0,1,6]]}
[null,8,"d","d","d","d","d"]
[{"$f":"CONCATENATE(\"Personalkosten des Jahres \",JAHR)","v":"Personalkosten des Jahres 2015"}]
[null,{"$f":"JAHR","v":2015},{"$f":"KA_NR1","v":"KA 1 mit Entwässerung"},null,{"$f":"SUMIFS($E$8:$E$17,$C$8:$C$17,$C3,$B$8:$B$17,JAHR)","v":0},null,{"$f":"SUMIFS($G$8:$G$17,$C$8:$C$17,$C3,$B$8:$B$17,JAHR)","v":0}]
[null,null,{"$f":"KA_NR2","v":"KA 2"},null,{"$f":"SUMIFS($E$8:$E$17,$C$8:$C$17,$C4,$B$8:$B$17,JAHR)","v":0},null,{"$f":"SUMIFS($G$8:$G$17,$C$8:$C$17,$C4,$B$8:$B$17,JAHR)","v":0}]
[null,null,{"$f":"KA_NR3","v":"KA 3"},null,{"$f":"SUMIFS($E$8:$E$17,$C$8:$C$17,$C5,$B$8:$B$17,JAHR)","v":0},null,{"$f":"SUMIFS($G$8:$G$17,$C$8:$C$17,$C5,$B$8:$B$17,JAHR)","v":0}]
[null,"Teilergebnis (Filter)",{"$f":"SUBTOTAL(3,A8:A17)-1","v":9},null,{"$f":"SUBTOTAL(9,E8:E17)","v":0},null,{"$f":"SUBTOTAL(9,G8:G17)","v":0}]
[null,"Gesamt (Eingaben)",{"$f":"COUNTA(A8:A17)-1","v":9},null,{"$f":"SUM(E8:E17)","v":0},null,{"$f":"SUM(G8:G17)","v":0}]
["PK Nr.","Jahr","Kläranlage","Mitarbeiter","Stunden","Stundensatz","Personalkosten €"]
[{"$f":"ROW(A9)-$B$1","v":1},{"$nulls":5},{"$f":"E9*F9","v":0}]
[2,{"$nulls":5},{"$f":"E10*F10","v":0}]
[3,{"$nulls":5},0]
[4,{"$nulls":5},0]
[5,{"$nulls":5},0]
[6,{"$nulls":5},0]
[7,{"$nulls":5},0]
[8,{"$nulls":5},{"$f":"E16*F16","v":0}]
[9,{"$nulls":5},0]

{"sheet":"Kosten Entwässerung","index":7,"n_rows":16,"n_cols":14,"rows_kept":16,"cut":false,"hidden":false,"merged":[[1,0,1,11]]}
[null,9,null,"d",null,null,"d","d",null,null,"d"]
[{"$f":"CONCATENATE(\"Kosten für die Klärschlammentwässerung des Jahres \",JAHR)","v":"Kosten für die Klärschlammentwässerung des Jahres 2015"}]
[null,{"$f":"JAHR","v":2015},null,{"$f":"KA_NR1","v":"KA 1 mit Entwässerung"},null,null,null,{"$f":"SUMIFS(H$9:H$16,$D$9:$D$16,$D3,$B$9:$B$16,JAHR,$M$9:$M$16,\"ja\")","v":0},null,null,{"$f":"SUMIFS(K$9:K$16,$D$9:$D$16,$D3,$B$9:$B$16,JAHR,$F$9:$F$16,\"direkt\")","v":0},{"$f":"SUMIFS(L$9:L$16,$D$9:$D$16,$D3,$B$9:$B$16,JAHR,$M$9:$M$16,\"ja\")","v":0}]
[null,null,null,{"$f":"KA_NR2","v":"KA 2"},null,null,null,{"$f":"SUMIFS($H$9:$H$16,$D$9:$D$16,$D4,$B$9:$B$16,JAHR)","v":0},null,null,{"$f":"SUMIFS(K$9:K$16,$D$9:$D$16,$D4,$B$9:$B$16,JAHR,$F$9:$F$16,\"direkt\")","v":0},{"$f":"SUMIFS(L$9:L$16,$D$9:$D$16,$D4,$B$9:$B$16,JAHR,$M$9:$M$16,\"ja\")","v":0}]
[null,null,null,{"$f":"KA_NR3","v":"KA 3"},null,null,null,{"$f":"SUMIFS($H$9:$H$16,$D$9:$D$16,$D5,$B$9:$B$16,JAHR)","v":0},null,null,{"$f":"SUMIFS(K$9:K$16,$D$9:$D$16,$D5,$B$9:$B$16,JAHR,$F$9:$F$16,\"direkt\")","v":0},{"$f":"SUMIFS(L$9:L$16,$D$9:$D$16,$D5,$B$9:$B$16,JAHR,$M$9:$M$16,\"ja\")","v":0}]
[null,null,null,"Verteilung",{"$nulls":6},{"$f":"SUMIFS(K$9:K$16,$B$9:$B$16,JAHR,$F$9:$F$16,\"<>direkt\")","v":0}]
[null,"Teilergebnis (Filter)",null,{"$f":"SUBTOTAL(3,A9:A16)-1","v":7},null,null,null,{"$f":"SUBTOTAL(9,H9:H16)","v":0},null,null,{"$f":"SUBTOTAL(9,K9:K16)","v":0},{"$f":"SUBTOTAL(9,L9:L16)","v":0}]
[null,"Gesamt (Eingaben)",null,{"$f":"COUNTA(A9:A16)-1","v":7},null,null,null,{"$f":"SUM(H9:H16)","v":0},null,null,{"$f":"SUM(K9:K16)","v":0},{"$f":"SUM(L9:L16)","v":0}]
["Kost Nr.","Jahr","Beleg/Datum","Kläranlage","Kostenart Enwässerung","Zuordnung","Entsorgung","Menge","Einheit","TS in %","Kosten","Menge * TS in %","Angabe Entsorgung Pflicht","Angabe TS Pflicht"]
[{"$f":"ROW(A10)-$B$1","v":1},{"$nulls":4},{"$f":"IFERROR(VLOOKUP($E10,KA_MATRIX_PRESSUNG,3,FALSE),\"n.n.\")","v":"n.n."},null,null,{"$f":"IFERROR(VLOOKUP($E10,KA_MATRIX_PRESSUNG,2,FALSE),\"n.n.\")","v":"n.n."},0.33200000000000002,null,{"$f":"IF(AND(M10=\"ja\",N10=\"ja\"),H10*J10,0)","v":0},{"$f":"IFERROR(VLOOKUP($E10,KA_MATRIX_PRESSUNG,4,FALSE),\"nein\")","v":"nein"},{"$f":"IFERROR(VLOOKUP($E10,KA_MATRIX_PRESSUNG,5,FALSE),\"nein\")","v":"nein"}]
[2,{"$nulls":4},"n.n.",null,null,"n.n.",0.33200000000000002,null,{"$f":"IF(AND(M11=\"ja\",N11=\"ja\"),H11*J11,0)","v":0},"nein","nein"]
[3,{"$nulls":4},"n.n.",null,null,"n.n.",0.33200000000000002,null,0,"nein","nein"]
[4,{"$nulls":4},"n.n.",null,null,"n.n.",0.33200000000000002,null,0,"nein","nein"]
[5,{"$nulls":4},"n.n.",null,null,"n.n.",0.33200000000000002,null,0,"nein","nein"]
[6,{"$nulls":4},"n.n.",null,null,"n.n.",0.33200000000000002,null,0,"nein","nein"]
[7,{"$nulls":4},"n.n.",null,null,"n.n.",0.29499999999999998,null,0,"nein","nein"]

{"sheet":"Kosten Nassschlamm","index":8,"n_rows":21,"n_cols":14,"rows_kept":21,"cut":false,"hidden":false,"merged":[[1,0,1,11]]}
[null,13,null,"d",null,null,"d","d",null,null,"d"]
[{"$f":"CONCATENATE(\"Kosten für die Nassschlammentsorgung des Jahres \",JAHR)","v":"Kosten für die Nassschlammentsorgung des Jahres 2015"}]
[null,{"$f":"JAHR","v":2015},"Gesamt",{"$f":"KA_NR4","v":"KA 1 ohne Entwässerung"},{"$f":"KA_NR5","v":"KA 2 ohne Entwässerung"},{"$f":"KA_NR6","v":"KA 3 ohne Entwässerung"},{"$f":"KA_NR7","v":"KA 4"},{"$f":"KA_NR8","v":"KA 5"},{"$f":"KA_NR9","v":"KA 6"},{"$f":"KA_NR10","v":"KA 7"},{"$f":"KA_NR11","v":"KA 8"},"Verteilung"]
[null,"Menge Aufbringung",{"$f":"SUM(D4:K4)","v":0},{"$f":"SUMIFS($H$13:$H$21,$D$13:$D$21,D3,$B$13:$B$21,JAHR,$E$13:$E$21,\"Aufbringung Nassschlamm aus KA\")+SUMIFS($H$13:$H$21,$D$13:$D$21,D3,$B$13:$B$21,JAHR,$E$13:$E$21,\"Aufbringung Nassschlamm aus Güllelager\")","v":0},0,0,0,0,0,0,0]
[null,"davon aus Güllelager",{"$f":"SUM(D5:K5)","v":0},{"$f":"SUMIFS($H$13:$H$21,$D$13:$D$21,D3,$B$13:$B$21,JAHR,$E$13:$E$21,\"Aufbringung Nassschlamm aus Güllelager\")","v":0},0,0,0,0,0,0,0]
[null,"Menge Aufbringung * TS in %",{"$f":"SUM(D6:K6)","v":0},{"$f":"SUMIFS($L$13:$L$21,$D$13:$D$21,D3,$B$13:$B$21,JAHR,$M$13:$M$21,\"ja\",$N$13:$N$21,\"ja\")","v":0},0,0,0,0,0,0,0]
[null,"Menge Lager und Transport KA",{"$f":"SUM(D7:K7)","v":0},{"$f":"SUMIFS($H$13:$H$21,$D$13:$D$21,D3,$B$13:$B$21,JAHR,$M$13:$M$21,\"nein\",$N$13:$N$21,\"ja\")","v":0},0,0,0,0,0,0,0]
[null,"Menge Lager * TS in %",{"$f":"SUM(D8:K8)","v":0},{"$f":"SUMIFS($L$13:$L$21,$D$13:$D$21,D3,$B$13:$B$21,JAHR,$M$13:$M$21,\"nein\",$N$13:$N$21,\"ja\")","v":0},0,0,0,0,0,0,0]
[null,"Kosten",{"$f":"SUM(D9:L9)","v":0},{"$f":"SUMIFS($K$13:$K$21,$D$13:$D$21,D3,$B$13:$B$21,JAHR,$F$13:$F$21,\"direkt\")","v":0},0,0,0,0,0,0,0,{"$f":"SUMIFS($K$13:$K$21,$B$13:$B$21,JAHR,$F$13:$F$21,\"<>direkt\")","v":0}]
[null,"Menge * TS in %",{"$f":"SUM(D10:K10)","v":0},{"$f":"SUMIFS($L$13:$L$21,$D$13:$D$21,D3,$B$13:$B$21,JAHR,$N$13:$N$21,\"ja\")","v":0},0,0,0,0,0,0,0]
[null,"Teilergebnis (Filter)",null,{"$f":"SUBTOTAL(3,A13:A21)-1","v":8},null,null,null,{"$f":"SUBTOTAL(9,H13:H21)","v":0},null,null,{"$f":"SUBTOTAL(9,K13:K21)","v":0},{"$f":"SUBTOTAL(9,L13:L21)","v":0}]
[null,"Gesamt (Eingaben)",null,{"$f":"COUNTA(A13:A21)-1","v":8},null,null,null,{"$f":"SUM(H13:H21)","v":0},null,null,{"$f":"SUM(K13:K21)","v":0},{"$f":"SUM(L13:L21)","v":0}]
["Kost Nr.","Jahr","Beleg/Datum","Kläranlage","Kostenart","Zuordnung","Entsorgung","Menge","Einheit","TS in %","Kosten","Menge * TS in %","Angabe LW Pflicht","Angabe TS Pflicht"]
[{"$f":"ROW(A14)-$B$1","v":1},{"$nulls":4},{"$f":"IFERROR(VLOOKUP($E14,KA_MATRIX_NASSSCHLAMM,3,FALSE),\"n.n.\")","v":"n.n."},null,null,{"$f":"IFERROR(VLOOKUP($E14,KA_MATRIX_NASSSCHLAMM,2,FALSE),\"n.n.\")","v":"n.n."},null,null,{"$f":"IF(N14=\"ja\",H14*J14,0)","v":0},{"$f":"IFERROR(VLOOKUP($E14,KA_MATRIX_NASSSCHLAMM,4,FALSE),\"nein\")","v":"nein"},{"$f":"IFERROR(VLOOKUP($E14,KA_MATRIX_NASSSCHLAMM,5,FALSE),\"nein\")","v":"nein"}]
[2,{"$nulls":4},"n.n.",null,null,"n.n.",null,null,{"$f":"IF(N15=\"ja\",H15*J15,0)","v":0},"nein","nein"]
[3,{"$nulls":4},"n.n.",null,null,"n.n.",null,null,0,"nein","nein"]
[4,{"$nulls":4},"n.n.",null,null,"n.n.",null,null,0,"nein","nein"]
[5,{"$nulls":4},"n.n.",null,null,"n.n.",null,null,0,"nein","nein"]
[6,{"$nulls":4},"n.n.",null,null,"n.n.",null,null,0,"nein","nein"]
[7,{"$nulls":4},"n.n.",null,null,"n.n.",null,null,0,"nein","nein"]
[8,{"$nulls":4},"n.n.",null,null,"n.n.",null,null,0,"nein","nein"]

{"sheet":"Verteilung Entwässerung","index":9,"n_rows":6,"n_cols":5,"rows_kept":6,"cut":false,"hidden":true,"merged":[[1,0,1,4]]}
[null,5,"d",null,"d"]
[{"$f":"CONCATENATE(\"Schlüssel zur Verteilung entwässerten Klärschlamms \",JAHR)","v":"Schlüssel zur Verteilung entwässerten Klärschlamms 2015"}]
[null,"Gesamt",{"$f":"COUNTA(A4:A6)-2","v":1}]
["Nr.","Verteilung entwässerter Klärschlamm","Kostenart Entwässerung","nach Einheit","Konsistenz"]
[{"$f":"ROW(A5)-$B$1","v":0},"direkt"]
[{"$f":"ROW(A6)-$B$1","v":1},"Menge entwässerter Klärschlamm","Entsorgung/Aufbringung auf Fläche",{"$f":"IFERROR(VLOOKUP(C6,KA_MATRIX_PRESSUNG,2,FALSE),\"nicht definiert\")","v":"m3"},{"$f":"IF(AND(D6<>\"nicht definiert\",D6<>\"keine\"),\"ja\",\"nein\")","v":"ja"}]

{"sheet":"Kostenarten Entwässerung","index":10,"n_rows":11,"n_cols":6,"rows_kept":11,"cut":false,"hidden":true,"merged":[[1,0,1,5]]}
[null,4,"d",null,"d","d"]
[{"$f":"CONCATENATE(\"Kostenarten der Klärschlammentwässerung \",JAHR)","v":"Kostenarten der Klärschlammentwässerung 2015"}]
[null,"Gesamt",{"$f":"COUNTA(A4:A11)-1","v":7}]
["KA Nr.","Kostenart Entwässerung","Einheit","Zuordnung","Angabe Entsorgung Pflicht","Angabe TS-Gehalt Pflicht"]
[{"$f":"ROW(A5)-$B$1","v":1},"Entsorgung/Aufbringung auf Fläche","m3","direkt","ja","ja"]
[2,"Aufbereitungsstoffe","keine","direkt","nein","nein"]
[3,"Materialeinsatz","keine","direkt","nein","nein"]
[4,"Unterhaltung","keine","direkt","nein","nein"]
[5,"Stromkosten","keine","direkt","nein","nein"]
[6,"Untersuchung entwässerte Proben","keine","direkt","nein","nein"]
[7,"Sonstiges","keine","direkt","nein","nein"]

{"sheet":"Listen","index":11,"n_rows":50,"n_cols":5,"rows_kept":50,"cut":false,"hidden":true,"merged":[]}
["Anlagenzugang","PK-Jahr","Einheiten","Pflicht LW","Pflicht TS"]
[2020,2025,"keine","ja","ja"]
[2019,2024,"m3","nein","nein"]
[2018,2023,"kg"]
[2017,2022,"kWh"]
[2016,2021]
[2015,2020]
[2014,2019]
[2013,2018]
[2012,2017]
[2011,2016]
[2010,2015]
[2009,2014]
[2008,2013]
[2007,2012]
[2006,2011]
[2005,2010]
[2004]
[2003]
[2002]
[2001]
[2000]
[1999]
[1998]
[1997]
[1996]
[1995]
[1994]
[1993]
[1992]
[1991]
[1990]
[1989]
[1988]
[1987]
[1986]
[1985]
[1984]
[1983]
[1982]
[1981]
[1980]
[1979]
[1978]
[1977]
[1976]
[1975]
[1974]
[1973]
[1972]

{"sheet":"Kostenarten Nassschlamm","index":12,"n_rows":11,"n_cols":6,"rows_kept":11,"cut":false,"hidden":true,"merged":[[1,0,1,5]]}
[null,4,"d",null,"d","d"]
[{"$f":"CONCATENATE(\"Kostenarten Nassschlamm \",JAHR)","v":"Kostenarten Nassschlamm 2015"}]
[null,"Gesamt",{"$f":"COUNTA(A4:A11)-1","v":7}]
["KA Nr.","Kostenart Nassschlamm","Einheit","Zuordnung","Angabe Landwirt Pflicht","Angabe TS-Gehalt Pflicht"]
[{"$f":"ROW(A5)-$B$1","v":1},"Aufbringung Nassschlamm aus KA","m3","direkt","ja","ja"]
[2,"Aufbringung Nassschlamm aus Güllelager","m3","direkt","ja","ja"]
[3,"Transport zur KA für Entwässerung","m3","direkt","nein","ja"]
[4,"Transport in das Güllelager","m3","direkt","nein","ja"]
[5,"Miete Behälter Güllelager","keine","Menge Güllelager","nein","nein"]
[6,"Untersuchung Probe Nassschlamm","keine","Nassschlammmenge KA","nein","nein"]
[7,"Sonstiges","keine","direkt","nein","nein"]

{"sheet":"Verteilung Nassschlamm","index":13,"n_rows":7,"n_cols":5,"rows_kept":7,"cut":false,"hidden":true,"merged":[[1,0,1,4]]}
[null,5,"d",null,"d"]
[{"$f":"CONCATENATE(\"Schlüssel zur Verteilung Nassschlamm \",JAHR)","v":"Schlüssel zur Verteilung Nassschlamm 2015"}]
[null,"Gesamt",{"$f":"COUNTA(A4:A7)-1","v":3}]
["Nr.","Verteilung Nassschlamm","Kostenart Nassschlamm","nach Einheit","Konsistenz"]
[{"$f":"ROW(A5)-$B$1","v":0},"direkt"]
[{"$f":"ROW(A6)-$B$1","v":1},"Nassschlammmenge KA","Aufbringung Nassschlamm",{"$f":"IFERROR(VLOOKUP(C6,KA_MATRIX_NASSSCHLAMM,2,FALSE),\"nicht definiert\")","v":"nicht definiert"},{"$f":"IF(AND(D6<>\"nicht definiert\",D6<>\"keine\"),\"ja\",\"nein\")","v":"nein"}]
[{"$f":"ROW(A7)-$B$1","v":2},"Menge Güllelager","Transport in das Güllelager",{"$f":"IFERROR(VLOOKUP(C7,KA_MATRIX_NASSSCHLAMM,2,FALSE),\"nicht definiert\")","v":"m3"},{"$f":"IF(AND(D7<>\"nicht definiert\",D7<>\"keine\"),\"ja\",\"nein\")","v":"ja"}]